Workbook

Sheet Sines
D1: Sinusoidal Functions
D3: This program lets you investigate the
D4: behavior of the sinusoidal function
D7: based on the values of A, B, C and D.
C10: What is the midline A (- 2 to 2)? | E10: =G10/10-2 -> -0.3 | F10: 62 | G10: 17
C12: What is the amplitude B (- 3 to 3)? | E12: =G12/10-3 -> 1.3 | F12: 62 | G12: 43
C14: What is the frequency C (0.1 to 5)? | E14: =G14/10+0.1 -> 2.7 | F14: 62 | G14: 26
C16: What is the phase shift D (- p to p)? | E16: =G16/100-3.14 -> 0.02 | F16: 62 | G16: 316 | L16: =" y = "&TEXT(a,"0.0")&" + ("&TEXT(b,"0.00")& " sin ("&TEXT(cc,"0.00")&"(x - ("&TEXT(d,"0.00")&") ) )" -> y = -0.3 + (1.30 sin (2.70(x - (0.02) ) )
B21: Click each item below for suggestions and investigations
D22: Item 1
D23: Item 2
D24: Item 3
D25: Item 4
D26: Item 5
A31: Created by: Sheldon P. Gordon
A32: Farmingdale StateCollege
A33: Development of this module was supported by the
A34: NSF's Division of Undergraduate Education
A35: under grants DUE-0310123 and DUE-0442160.

Sheet Cosines
D1: Sinusoidal Functions
D3: This program lets you investigate the
D4: behavior of the sinusoidal function
D7: based on the values of A, B, C and D.
C10: What is the midline A (- 2 to 2)? | E10: =G10/10-2 -> 0.4 | F10: 62 | G10: 24
C12: What is the amplitude B (- 3 to 3)? | E12: =G12/10-3 -> 1 | F12: 62 | G12: 40
C14: What is the frequency C (0.1 to 5)? | E14: =G14/10+0.1 -> 2 | F14: 62 | G14: 19
C16: What is the phase shift D (- p to p)? | E16: =G16/100-3.14 -> 0.2 | F16: 62 | G16: 334 | L16: =" y = "&TEXT(aa,"0.0")&" + ("&TEXT(bb,"0.00")& " cos ("&TEXT(ccc,"0.00")&"(x - ("&TEXT(dd,"0.00")&") ) )" -> y = 0.4 + (1.00 cos (2.00(x - (0.20) ) )
B22: Click each item below for suggestions and investigations
D23: Item 1
D24: Item 2
D25: Item 3
D26: Item 4
D27: Item 5

Sheet Sheet3
B2: Sines | G2: Cosines
A3: 0 | B3: =a+b*SIN(cc*(A3-d)) -> -0.3701658878 | C3: 0 | D3: 1 | F3: 0 | G3: =aa+bb*COS(ccc*(F3-dd)) -> 1.321060994
A4: =A3+PI()/100 -> 0.03141592654 | B4: -0.2599364423 | F4: =F3+PI()/100 -> 0.03141592654 | G4: 1.343695271
A5: 0.06283185307 | B5: -0.1499950791 | C5: 0 | D5: =a -> -0.3 | F5: 0.06283185307 | G5: 1.362605213 | H5: 0 | I5: =aa -> 0.4
A6: 0.09424777961 | B6: -0.04113234551 | C6: 6.28 | D6: =a -> -0.3 | F6: 0.09424777961 | G6: 1.377716192 | H6: 6.28 | I6: =aa -> 0.4
A7: 0.1256637061 | B7: 0.06586896688 | F7: 0.1256637061 | G7: 1.388968573
A8: 0.1570796327 | B8: 0.1702394514 | F8: 0.1570796327 | G8: 1.396317946
A9: 0.1884955592 | B9: 0.2712286186 | F9: 0.1884955592 | G9: 1.399735307
A10: 0.2199114858 | B10: 0.3681102928 | F10: 0.2199114858 | G10: 1.39920717
A11: 0.2513274123 | B11: 0.4601878341 | F11: 0.2513274123 | G11: 1.394735619
A12: 0.2827433388 | B12: 0.5467991468 | F12: 0.2827433388 | G12: 1.386338301
A13: 0.3141592654 | B13: 0.6273214413 | F13: 0.3141592654 | G13: 1.374048356
A14: 0.3455751919 | B14: 0.7011757117 | F14: 0.3455751919 | G14: 1.357914287
A15: 0.3769911184 | B15: 0.7678308992 | F15: 0.3769911184 | G15: 1.337999768
A16: 0.408407045 | B16: 0.8268077111 | F16: 0.408407045 | G16: 1.314383392
A17: 0.4398229715 | B17: 0.8776820673 | F17: 0.4398229715 | G17: 1.287158363
A18: 0.471238898 | B18: 0.9200881489 | F18: 0.471238898 | G18: 1.256432126
A19: 0.5026548246 | B19: 0.9537210296 | F19: 0.5026548246 | G19: 1.222325942
A20: 0.5340707511 | B20: 0.9783388679 | F20: 0.5340707511 | G20: 1.184974413
A21: 0.5654866776 | B21: 0.9937646461 | F21: 0.5654866776 | G21: 1.144524948
A22: 0.5969026042 | B22: 0.999887443 | F22: 0.5969026042 | G22: 1.101137184
A23: 0.6283185307 | B23: 0.996663232 | F23: 0.6283185307 | G23: 1.054982352
A24: 0.6597344573 | B24: 0.9841151971 | F24: 0.6597344573 | G24: 1.006242604
A25: 0.6911503838 | B25: 0.9623335666 | F25: 0.6911503838 | G25: 0.9551102927
A26: 0.7225663103 | B26: 0.9314749641 | F26: 0.7225663103 | G26: 0.9017872151
A27: 0.7539822369 | B27: 0.8917612824 | F27: 0.7539822369 | G27: 0.8464838125
A28: 0.7853981634 | B28: 0.8434780878 | F28: 0.7853981634 | G28: 0.7894183423
A29: 0.8168140899 | B29: 0.7869725668 | F29: 0.8168140899 | G29: 0.7308160158
A30: 0.8482300165 | B30: 0.7226510297 | F30: 0.8482300165 | G30: 0.6709081097
A31: 0.879645943 | B31: 0.6509759887 | F31: 0.879645943 | G31: 0.609931053
A32: 0.9110618695 | B32: 0.5724628325 | F32: 0.9110618695 | G32: 0.5481254943
A33: 0.9424777961 | B33: 0.48767612 | F33: 0.9424777961 | G33: 0.485735352
A34: 0.9738937226 | B34: 0.3972255209 | F34: 0.9738937226 | G34: 0.4230068514
A35: 1.005309649 | B35: 0.3017614321 | F35: 1.005309649 | G35: 0.3601875533
A36: =A35+PI()/100 -> 1.036725576 | B36: 0.2019703001 | F36: =F35+PI()/100 -> 1.036725576 | G36: 0.2975253768
A37: 1.068141502 | B37: 0.09856968615 | F37: 1.068141502 | G37: 0.2352676207
A38: 1.099557429 | B38: -0.00769689445 | F38: 1.099557429 | G38: 0.1736599881
A39: 1.130973355 | B39: -0.1160653182 | F39: 1.130973355 | G39: 0.1129456161
A40: 1.162389282 | B40: -0.2257563479 | F40: 1.162389282 | G40: 0.05336411666
A41: 1.193805208 | B41: -0.3359812361 | F41: 1.193805208 | G41: -0.004849369347
A42: 1.225221135 | B42: -0.4459473967 | F42: 1.225221135 | G42: -0.06146509985
A43: 1.256637061 | B43: -0.5548641036 | F43: 1.256637061 | G43: -0.1162596384
A44: 1.288052988 | B44: -0.6619481775 | F44: 1.288052988 | G44: -0.1690167361
A45: 1.319468915 | B45: -0.7664296164 | F45: 1.319468915 | G45: -0.2195281846
A46: 1.350884841 | B46: -0.8675571331 | F46: 1.350884841 | G46: -0.2675946384
A47: 1.382300768 | B47: -0.9646035572 | F47: 1.382300768 | G47: -0.3130264012
A48: 1.413716694 | B48: -1.056871064 | F48: 1.413716694 | G48: -0.3556441746
A49: 1.445132621 | B49: -1.143696192 | F49: 1.445132621 | G49: -0.3952797656
A50: 1.476548547 | B50: -1.224454614 | F50: 1.476548547 | G50: -0.4317767506
A51: 1.507964474 | B51: -1.298565625 | F51: 1.507964474 | G51: -0.4649910929
A52: 1.5393804 | B52: -1.365496323 | F52: 1.5393804 | G52: -0.4947917105
A53: 1.570796327 | B53: -1.424765432 | F53: 1.570796327 | G53: -0.521060994
A54: 1.602212253 | B54: -1.47594677 | F54: 1.602212253 | G54: -0.5436952706
A55: 1.63362818 | B55: -1.518672311 | F55: 1.63362818 | G55: -0.562605213
A56: 1.665044106 | B56: -1.552634833 | F56: 1.665044106 | G56: -0.5777161925
A57: 1.696460033 | B57: -1.577590122 | F57: 1.696460033 | G57: -0.5889685728
A58: 1.727875959 | B58: -1.593358736 | F58: 1.727875959 | G58: -0.5963179459
A59: 1.759291886 | B59: -1.599827287 | F59: 1.759291886 | G59: -0.5997353074
A60: 1.790707813 | B60: -1.596949262 | F60: 1.790707813 | G60: -0.5992071703
A61: 1.822123739 | B61: -1.584745357 | F61: 1.822123739 | G61: -0.5947356189
A62: 1.853539666 | B62: -1.563303325 | F62: 1.853539666 | G62: -0.5863383006
A63: 1.884955592 | B63: -1.532777348 | F63: 1.884955592 | G63: -0.5740483556
A64: 1.916371519 | B64: -1.493386926 | F64: 1.916371519 | G64: -0.5579142867
A65: 1.947787445 | B65: -1.445415303 | F65: 1.947787445 | G65: -0.5379997678
A66: 1.979203372 | B66: -1.389207423 | F66: 1.979203372 | G66: -0.5143833923
A67: 2.010619298 | B67: =a+b*SIN(cc*(A67-d)) -> -1.325167457 | F67: 2.010619298 | G67: =aa+bb*COS(ccc*(F67-dd)) -> -0.4871583633
A68: =A67+PI()/100 -> 2.042035225 | B68: -1.253755892 | F68: =F67+PI()/100 -> 2.042035225 | G68: -0.4564321256
A69: 2.073451151 | B69: -1.175486223 | F69: 2.073451151 | G69: -0.4223259415
A70: 2.104867078 | B70: -1.090921258 | F70: 2.104867078 | G70: -0.3849744126
A71: 2.136283004 | B71: -1.000669071 | F71: 2.136283004 | G71: -0.3445249484
A72: 2.167698931 | B72: -0.9053786335 | F72: 2.167698931 | G72: -0.3011371843
A73: 2.199114858 | B73: -0.8057351429 | F73: 2.199114858 | G73: -0.254982352
A74: 2.230530784 | B74: -0.7024550986 | F74: 2.230530784 | G74: -0.2062426037
A75: 2.261946711 | B75: -0.5962811492 | F75: 2.261946711 | G75: -0.1551102927
A76: 2.293362637 | B76: -0.487976752 | F76: 2.293362637 | G76: -0.1017872151
A77: 2.324778564 | B77: -0.3783206837 | F77: 2.324778564 | G77: -0.0464838125
A78: 2.35619449 | B78: -0.2681014405 | F78: 2.35619449 | G78: 0.01058165769
A79: 2.387610417 | B79: -0.1581115681 | F79: 2.387610417 | G79: 0.06918398417
A80: 2.419026343 | B80: -0.0491419626 | F80: 2.419026343 | G80: 0.1290918903
A81: 2.45044227 | B81: 0.05802381585 | F81: 2.45044227 | G81: 0.190068947
A82: 2.481858196 | B82: 0.162615178 | F82: 2.481858196 | G82: 0.2518745057
A83: 2.513274123 | B83: 0.2638800461 | F83: 2.513274123 | G83: 0.314264648
A84: 2.544690049 | B84: 0.3610902622 | F84: 2.544690049 | G84: 0.3769931486
A85: 2.576105976 | B85: 0.4535468237 | F85: 2.576105976 | G85: 0.4398124467
A86: 2.607521902 | B86: 0.5405849097 | F86: 2.607521902 | G86: 0.5024746232
A87: 2.638937829 | B87: 0.6215786618 | F87: 2.638937829 | G87: 0.5647323793
A88: 2.670353756 | B88: 0.6959456839 | F88: 2.670353756 | G88: 0.6263400119
A89: 2.701769682 | B89: 0.7631512303 | F89: 2.701769682 | G89: 0.6870543839
A90: 2.733185609 | B90: 0.822712051 | F90: 2.733185609 | G90: 0.7466358833
A91: 2.764601535 | B91: 0.8741998662 | F91: 2.764601535 | G91: 0.8048493693
A92: 2.796017462 | B92: 0.9172444461 | F92: 2.796017462 | G92: 0.8614650998
A93: 2.827433388 | B93: 0.9515362731 | F93: 2.827433388 | G93: 0.9162596384
A94: 2.858849315 | B94: 0.9768287675 | F94: 2.858849315 | G94: 0.9690167361
A95: 2.890265241 | B95: 0.9929400603 | F95: 2.890265241 | G95: 1.019528185
A96: 2.921681168 | B96: 0.9997543012 | F96: 2.921681168 | G96: 1.067594638
A97: 2.953097094 | B97: 0.9972224915 | F97: 2.953097094 | G97: 1.113026401
A98: 2.984513021 | B98: 0.9853628365 | F98: 2.984513021 | G98: 1.155644175
A99: 3.015928947 | B99: 0.9642606145 | F99: 3.015928947 | G99: 1.195279766
A100: =A99+PI()/100 -> 3.047344874 | B100: 0.9340675639 | F100: =F99+PI()/100 -> 3.047344874 | G100: 1.231776751
A101: 3.078760801 | B101: 0.8950007917 | F101: 3.078760801 | G101: 1.264991093
A102: 3.110176727 | B102: 0.8473412124 | F102: 3.110176727 | G102: 1.29479171
A103: 3.141592654 | B103: 0.7914315285 | F103: 3.141592654 | G103: 1.321060994
A104: 3.17300858 | B104: 0.7276737657 | F104: 3.17300858 | G104: 1.343695271
A105: 3.204424507 | B105: 0.6565263824 | F105: 3.204424507 | G105: 1.362605213
A106: 3.235840433 | B106: 0.578500973 | F106: 3.235840433 | G106: 1.377716192
A107: 3.26725636 | B107: 0.4941585894 | F107: 3.26725636 | G107: 1.388968573
A108: 3.298672286 | B108: 0.4041057061 | F108: 3.298672286 | G108: 1.396317946
A109: 3.330088213 | B109: 0.3089898602 | F109: 3.330088213 | G109: 1.399735307
A110: 3.361504139 | B110: 0.2094949943 | F110: 3.361504139 | G110: 1.39920717
A111: 3.392920066 | B111: 0.106336539 | F111: 3.392920066 | G111: 1.394735619
A112: 3.424335992 | B112: 0.000256268613 | F112: 3.424335992 | G112: 1.386338301
A113: 3.455751919 | B113: -0.1079830332 | F113: 3.455751919 | G113: 1.374048356
A114: 3.487167845 | B114: -0.2176030577 | F114: 3.487167845 | G114: 1.357914287
A115: 3.518583772 | B115: -0.327815568 | F115: 3.518583772 | G115: 1.337999768
A116: 3.549999699 | B116: -0.4378280668 | F116: 3.549999699 | G116: 1.314383392
A117: 3.581415625 | B117: -0.5468494953 | F117: 3.581415625 | G117: 1.287158363
A118: 3.612831552 | B118: -0.6540959206 | F118: 3.612831552 | G118: 1.256432126
A119: 3.644247478 | B119: -0.7587961737 | F119: 3.644247478 | G119: 1.222325942
A120: 3.675663405 | B120: -0.8601973939 | F120: 3.675663405 | G120: 1.184974413
A121: 3.707079331 | B121: -0.9575704425 | F121: 3.707079331 | G121: 1.144524948
A122: 3.738495258 | B122: -1.050215146 | F122: 3.738495258 | G122: 1.101137184
A123: 3.769911184 | B123: -1.137465331 | F123: 3.769911184 | G123: 1.054982352
A124: 3.801327111 | B124: -1.218693614 | F124: 3.801327111 | G124: 1.006242604
A125: 3.832743037 | B125: -1.293315913 | F125: 3.832743037 | G125: 0.9551102927
A126: 3.864158964 | B126: -1.360795645 | F126: 3.864158964 | G126: 0.9017872151
A127: 3.89557489 | B127: -1.42064759 | F127: 3.89557489 | G127: 0.8464838125
A128: 3.926990817 | B128: -1.472441374 | F128: 3.926990817 | G128: 0.7894183423
A129: 3.958406744 | B129: -1.515804567 | F129: 3.958406744 | G129: 0.7308160158
A130: 3.98982267 | B130: -1.550425361 | F130: 3.98982267 | G130: 0.6709081097
A131: 4.021238597 | B131: =a+b*SIN(cc*(A131-d)) -> -1.576054811 | F131: 4.021238597 | G131: =aa+bb*COS(ccc*(F131-dd)) -> 0.609931053
A132: =A131+PI()/100 -> 4.052654523 | B132: -1.592508624 | F132: =F131+PI()/100 -> 4.052654523 | G132: 0.5481254943
A133: 4.08407045 | B133: -1.599668488 | F133: 4.08407045 | G133: 0.485735352
A134: 4.115486376 | B134: -1.597482918 | F134: 4.115486376 | G134: 0.4230068514
A135: 4.146902303 | B135: -1.58596763 | F135: 4.146902303 | G135: 0.3601875533
A136: 4.178318229 | B136: -1.565205427 | F136: 4.178318229 | G136: 0.2975253768
A137: 4.209734156 | B137: -1.535345601 | F137: 4.209734156 | G137: 0.2352676207
A138: 4.241150082 | B138: -1.496602863 | F138: 4.241150082 | G138: 0.1736599881
A139: 4.272566009 | B139: -1.449255799 | F139: 4.272566009 | G139: 0.1129456161
A140: 4.303981935 | B140: -1.393644862 | F140: 4.303981935 | G140: 0.05336411666
A141: 4.335397862 | B141: -1.330169932 | F141: 4.335397862 | G141: -0.004849369347
A142: 4.366813788 | B142: -1.259287432 | F142: 4.366813788 | G142: -0.06146509985
A143: 4.398229715 | B143: -1.181507053 | F143: 4.398229715 | G143: -0.1162596384
A144: 4.429645642 | B144: -1.097388083 | F144: 4.429645642 | G144: -0.1690167361
A145: 4.461061568 | B145: -1.007535392 | F145: 4.461061568 | G145: -0.2195281846
A146: 4.492477495 | B146: -0.9125950764 | F146: 4.492477495 | G146: -0.2675946384
A147: 4.523893421 | B147: -0.8132498172 | F147: 4.523893421 | G147: -0.3130264012
A148: 4.555309348 | B148: -0.7102139691 | F148: 4.555309348 | G148: -0.3556441746
A149: 4.586725274 | B149: -0.6042284246 | F149: 4.586725274 | G149: -0.3952797656
A150: 4.618141201 | B150: -0.4960552866 | F150: 4.618141201 | G150: -0.4317767506
A151: 4.649557127 | B151: -0.3864723877 | F151: 4.649557127 | G151: -0.4649910929
A152: 4.680973054 | B152: -0.2762676981 | F152: 4.680973054 | G152: -0.4947917105
A153: 4.71238898 | B153: -0.1662336586 | F153: 4.71238898 | G153: -0.521060994
A154: 4.743804907 | B154: -0.05716148314 | F154: 4.743804907 | G154: -0.5436952706
A155: 4.775220833 | B155: 0.05016453066 | F155: 4.775220833 | G155: -0.562605213
A156: 4.80663676 | B156: 0.1549726413 | F156: 4.80663676 | G156: -0.5777161925
A157: 4.838052687 | B157: 0.2565092127 | F157: 4.838052687 | G157: -0.5889685728
A158: 4.869468613 | B158: 0.3540441329 | F158: 4.869468613 | G158: -0.5963179459
A159: 4.90088454 | B159: 0.4468760646 | F159: 4.90088454 | G159: -0.5997353074
A160: 4.932300466 | B160: 0.5343374878 | F160: 4.932300466 | G160: -0.5992071703
A161: 4.963716393 | B161: 0.6157994999 | F161: 4.963716393 | G161: -0.5947356189
A162: 4.995132319 | B162: 0.6906763379 | F162: 4.995132319 | G162: -0.5863383006
A163: 5.026548246 | B163: 0.7584295901 | F163: 5.026548246 | G163: -0.5740483556
A164: =A163+PI()/100 -> 5.057964172 | B164: 0.8185720681 | F164: =F163+PI()/100 -> 5.057964172 | G164: -0.5579142867
A165: 5.089380099 | B165: 0.8706713097 | F165: 5.089380099 | G165: -0.5379997678
A166: 5.120796025 | B166: 0.9143526886 | F166: 5.120796025 | G166: -0.5143833923
A167: 5.152211952 | B167: 0.9493021082 | F167: 5.152211952 | G167: -0.4871583633
A168: 5.183627878 | B168: 0.9752682601 | F168: 5.183627878 | G168: -0.4564321256
A169: 5.215043805 | B169: 0.9920644315 | F169: 5.215043805 | G169: -0.4223259415
A170: 5.246459731 | B170: 0.9995698473 | F170: 5.246459731 | G170: -0.3849744126
A171: 5.277875658 | B171: 0.9977305388 | F171: 5.277875658 | G171: -0.3445249484
A172: 5.309291585 | B172: 0.9865597319 | F172: 5.309291585 | G172: -0.3011371843
A173: 5.340707511 | B173: 0.9661377516 | F173: 5.340707511 | G173: -0.254982352
A174: 5.372123438 | B174: 0.9366114449 | F174: 5.372123438 | G174: -0.2062426037
A175: 5.403539364 | B175: 0.8981931244 | F175: 5.403539364 | G175: -0.1551102927
A176: 5.434955291 | B176: 0.851159042 | F176: 5.434955291 | G176: -0.1017872151
A177: 5.466371217 | B177: 0.7958474023 | F177: 5.466371217 | G177: -0.0464838125
A178: 5.497787144 | B178: 0.7326559309 | F178: 5.497787144 | G178: 0.01058165769
A179: 5.52920307 | B179: 0.6620390141 | F179: 5.52920307 | G179: 0.06918398417
A180: 5.560618997 | B180: 0.5845044319 | F180: 5.560618997 | G180: 0.1290918903
A181: 5.592034923 | B181: 0.5006097067 | F181: 5.592034923 | G181: 0.190068947
A182: 5.62345085 | B182: 0.4109580944 | F182: 5.62345085 | G182: 0.2518745057
A183: 5.654866776 | B183: 0.3161942465 | F183: 5.654866776 | G183: 0.314264648
A184: 5.686282703 | B184: 0.2169995745 | F184: 5.686282703 | G184: 0.3769931486
A185: 5.71769863 | B185: 0.1140873505 | F185: 5.71769863 | G185: 0.4398124467
A186: 5.749114556 | B186: 0.008197578072 | F186: 5.749114556 | G186: 0.5024746232
A187: 5.780530483 | B187: -0.09990832867 | F187: 5.780530483 | G187: 0.5647323793
A188: 5.811946409 | B188: -0.2094530203 | F188: 5.811946409 | G188: 0.6263400119
A189: 5.843362336 | B189: -0.3196488017 | F189: 5.843362336 | G189: 0.6870543839
A190: 5.874778262 | B190: -0.4297032958 | F190: 5.874778262 | G190: 0.7466358833
A191: 5.906194189 | B191: -0.5388251417 | F191: 5.906194189 | G191: 0.8048493693
A192: 5.937610115 | B192: -0.6462296847 | F192: 5.937610115 | G192: 0.8614650998
A193: 5.969026042 | B193: -0.7511446185 | F193: 5.969026042 | G193: 0.9162596384
A194: 6.000441968 | B194: -0.852815539 | F194: 6.000441968 | G194: 0.9690167361
A195: 6.031857895 | B195: =a+b*SIN(cc*(A195-d)) -> -0.9505113681 | F195: 6.031857895 | G195: =aa+bb*COS(ccc*(F195-dd)) -> 1.019528185
A196: =A195+PI()/100 -> 6.063273821 | B196: -1.043529611 | F196: =F195+PI()/100 -> 6.063273821 | G196: 1.067594638
A197: 6.094689748 | B197: -1.13120141 | F197: 6.094689748 | G197: 1.113026401
A198: 6.126105675 | B198: -1.212896347 | F198: 6.126105675 | G198: 1.155644175
A199: 6.157521601 | B199: -1.288026985 | F199: 6.157521601 | G199: 1.195279766
A200: 6.188937528 | B200: -1.356053089 | F200: 6.188937528 | G200: 1.231776751
A201: 6.220353454 | B201: -1.416485507 | F201: 6.220353454 | G201: 1.264991093
... 2 more rows

Sheet Sheet4
